bitfinex/quotes_SOLUSD_20250317
["timestamp","ask_amount","ask_price","bid_price","bid_amount"]
[1742175126558,6.303e-05,128.08,128.07,133.38833007]
[1742175127185,6.303e-05,128.08,128.07,113.56822749]
[1742175127758,6.303e-05,128.08,128.07,113.28390435]
[1742175127967,6.303e-05,128.08,128.04,36.35146592]
[1742175127968,6.303e-05,128.08,128.05,16.82756592]
[1742175128885,6.303e-05,128.08,128.04,16.68540435]
[1742175129063,16.68546738,128.08,128.03,16.68540435]
[1742175129262,7.8082,128.07,128.03,16.68540435]
[1742175129670,24.49316738,128.08,128.03,16.68540435]
[1742175131272,16.68546738,128.08,128.03,16.68540435]
[1742175132078,16.68546738,128.08,128.03,24.49600435]
[1742175132263,6.303e-05,128.08,128.04,16.68540435]
[1742175132679,16.68546738,128.08,128.03,16.68540435]
[1742175133365,7.8082,128.07,128.03,16.68540435]
[1742175134083,7.8082,128.07,128.03,24.49600435]
[1742175134863,7.8082,128.07,128.03,16.68540435]
[1742175135363,24.49336738,128.08,128.03,24.49600435]
[1742175135562,6.303e-05,128.08,128.04,16.68540435]
[1742175137289,6.303e-05,128.08,128.05,7.8094]
[1742175139080,6.303e-05,128.08,128.04,16.68540435]
[1742175139081,6.303e-05,128.08,128.04,10.67493344]
[1742175140578,6.303e-05,128.08,128.05,7.8094]
[1742175141769,6.303e-05,128.08,128.05,18.48433344]
[1742175141970,6.303e-05,128.08,128.05,7.8094]
[1742175142395,6.303e-05,128.08,128.04,18.48463344]
[1742175146092,10.67499647,128.08,128.03,10.67493344]
[1742175147479,7.80806303,128.08,128.04,10.67493344]
[1742175148499,18.48299647,128.08,128.03,18.48553344]
[1742175148700,7.80806303,128.08,128.03,18.48553344]
[1742175148888,7.80806303,128.08,128.04,10.67493344]
[1742175150408,6.303e-05,128.08,128.05,10.67493344]
[1742175152102,6.303e-05,128.08,128.04,18.48483344]
[1742175152515,17.51199647,128.09,128.04,18.48483344]
[1742175154821,17.51199647,128.09,128.03,18.48533344]
[1742175155720,10.67493344,128.07,128.02,106.12593344]
[1742175155904,10.67493344,128.06,128.02,80.8]
[1742175156109,10.67493344,128.04,128.0,0.063]
[1742175156500,10.67493344,128.03,128.0,0.063]
[1742175157488,18.48563344,128.03,128.0,0.063]
[1742175157687,10.67493344,128.03,128.0,0.063]
[1742175159214,10.67493344,128.04,128.0,0.063]
[1742175160003,18.48453344,128.05,128.0,10.73793344]
[1742175160894,7.8096,128.05,128.0,10.73793344]
[1742175161618,37.1336823,128.06,128.01,7.8118]
[1742175162119,10.67493344,128.05,128.01,7.8118]
[1742175162319,10.67493344,128.05,128.0,18.55013344]
[1742175162930,10.67493344,128.03,128.0,0.063]
[1742175164117,18.48563344,128.03,128.0,0.063]
[1742175164522,10.67493344,128.02,128.0,0.063]
[1742175165117,10.67493344,128.01,128.0,0.063]
[1742175166130,18.48673344,128.01,128.0,0.063]
[1742175166831,18.64964886,128.01,128.0,0.063]
[1742175167922,29.3245823,128.02,128.0,0.063]
[1742175171547,1.573,128.03,128.0,0.063]
[1742175171745,29.3245823,128.04,128.0,0.063]
[1742175173652,29.3245823,128.04,128.0,7.8755]
[1742175174555,14.4677,128.05,128.0,7.8755]
[1742175174556,10.67493344,128.05,128.0,18.55043344]
[1742175174739,12.18363344,128.06,128.01,10.67493344]
[1742175175740,12.18363344,128.06,128.02,7.8112]
[1742175176470,10.67493344,128.06,128.02,7.8112]
[1742175177871,18.48373344,128.06,128.01,7.8115]
[1742175178050,10.67493344,128.05,128.01,7.8115]
[1742175180244,10.67493344,128.06,128.01,7.8115]
[1742175180763,10.67493344,128.05,128.01,7.8115]
[1742175181486,10.67493344,128.04,128.01,7.8115]
[1742175182494,10.67493344,128.04,128.0,7.8755]
[1742175183800,18.48493344,128.04,128.0,7.8755]
[1742175184679,10.67493344,128.03,128.0,0.063]
[1742175185199,10.67493344,128.02,128.0,0.063]
[1742175186483,18.48613344,128.02,128.0,0.063]
[1742175187495,10.67493344,128.02,128.0,0.063]
[1742175188197,18.48623344,128.02,128.0,0.063]
[1742175191607,10.67493344,128.02,128.0,0.063]
[1742175191815,18.64964886,128.02,128.0,0.063]
[1742175192516,10.67493344,128.03,128.0,0.063]
[1742175192817,10.67493344,128.04,128.0,0.063]
[1742175193405,10.67493344,128.05,128.0,10.73793344]
[1742175193732,18.64964886,128.06,128.01,18.48673344]
[1742175194786,7.8078,128.08,128.02,10.67493344]
[1742175195027,18.64964886,128.08,128.03,10.67493344]
[1742175196001,18.64964886,128.08,128.04,7.81]
[1742175196613,0.03,128.09,128.06,10.67493344]
[1742175196819,0.03,128.09,128.05,10.67493344]
[1742175197316,0.03,128.09,128.06,10.67493344]
[1742175198029,0.03,128.09,128.08,7.8076]
[1742175199406,0.03,128.09,128.08,18.48253344]
[1742175200337,0.03,128.09,128.08,18.76685658]
[1742175201528,0.0001,128.12,128.11,20.0]
[1742175201821,0.0001,128.12,128.11,119.86313344]
[1742175202324,0.0001,128.12,128.11,127.66883344]
[1742175204615,0.0001,128.12,128.11,439.66883344]
[1742175207114,0.0001,128.12,128.11,127.66883344]
[1742175207730,0.0001,128.12,128.11,107.66883344]
[1742175208742,0.0001,128.12,128.11,26.86883344]
[1742175211023,0.0001,128.12,128.11,10.67493344]
[1742175211613,0.0001,128.12,128.11,38.48063344]
[1742175211913,0.0001,128.12,128.11,18.48063344]
[1742175212215,0.0001,128.12,128.11,38.48063344]
[1742175212921,36.6276823,128.16,128.11,38.48063344]
[1742175213338,18.14974886,128.16,128.12,10.67493344]
[1742175214737,25.95254886,128.16,128.12,10.67493344]
[1742175214940,36.6274823,128.16,128.11,38.48063344]
[1742175216044,36.6274823,128.16,128.11,38.54363344]
[1742175216333,36.6574823,128.16,128.11,38.54363344]
[1742175216835,36.6574823,128.16,128.11,10.73793344]
[1742175217018,10.67493344,128.14,128.11,0.063]
[1742175218235,18.50773344,128.16,128.11,0.063]
[1742175219035,37.1573823,128.16,128.11,0.063]
[1742175219237,26.45354886,128.14,128.11,0.063]
[1742175219435,37.1284823,128.14,128.11,0.063]
[1742175220333,26.45354886,128.14,128.11,0.063]
[1742175220830,37.1284823,128.14,128.11,0.063]
[1742175221736,18.64964886,128.12,128.11,0.063]
[1742175221926,10.67493344,128.12,128.11,0.063]
[1742175223424,18.48003344,128.12,128.11,0.063]
[1742175224041,18.64964886,128.11,128.06,0.063]
[1742175224224,10.67493344,128.08,128.06,0.063]
[1742175224944,18.64964886,128.11,128.06,0.063]
[1742175225149,10.67493344,128.08,128.06,0.063]
[1742175225439,18.64964886,128.08,128.06,0.063]
[1742175225823,18.48263344,128.08,128.06,0.063]
[1742175226037,10.67493344,128.09,128.06,0.063]
[1742175226249,29.3245823,128.09,128.06,0.063]
[1742175226849,10.67493344,128.08,128.06,0.063]
[1742175227437,29.3245823,128.07,128.06,0.063]
[1742175227644,37.1327823,128.07,128.06,0.063]
[1742175230049,37.41710544,128.07,128.06,0.063]
[1742175230451,37.1327823,128.07,128.06,0.063]
[1742175236458,18.64964886,128.07,128.06,0.063]
[1742175236639,10.67493344,128.08,128.06,0.063]
[1742175236834,18.64964886,128.08,128.06,0.063]
[1742175237856,10.67493344,128.08,128.06,0.063]
[1742175238039,10.67493344,128.09,128.06,0.063]
[1742175239041,18.48233344,128.09,128.06,0.063]
[1742175240747,29.3245823,128.09,128.06,0.063]
[1742175241638,37.1316823,128.09,128.06,0.063]
[1742175241845,10.67493344,128.08,128.06,0.063]
[1742175242243,37.1316823,128.09,128.06,0.063]
[1742175242667,10.67493344,128.08,128.06,0.063]
[1742175243059,18.48253344,128.08,128.06,0.063]
[1742175244263,37.1317823,128.09,128.06,0.063]
[1742175246872,10.67493344,128.07,128.06,0.063]
[1742175248584,0.03,128.12,128.11,0.28432314]
[1742175248858,0.03,128.12,128.11,114.01845658]
[1742175250064,18.64964886,128.18,128.11,133.53285658]
[1742175250264,18.64964886,128.2,128.15,10.67493344]
[1742175250475,10.70493344,128.21,128.15,10.67493344]
[1742175250767,18.64964886,128.2,128.15,18.47823344]
[1742175251148,18.64964886,128.2,128.15,24.45495821]
[1742175252255,35.30130707,128.2,128.15,24.45495821]
[1742175252745,16.65165821,128.2,128.15,24.45495821]
[1742175252944,36.68165821,128.21,128.15,31.29495821]
[1742175253352,0.03,128.21,128.15,31.57928135]
[1742175254949,16.68165821,128.21,128.15,31.29495821]
[1742175255149,16.65165821,128.2,128.15,14.6433]
[1742175255353,16.65165821,128.2,128.15,31.29495821]
[1742175255956,16.65165821,128.19,128.15,14.6433]
[1742175256157,16.65165821,128.19,128.15,6.84]
[1742175256652,16.65165821,128.19,128.15,23.49165821]
[1742175256847,16.65165821,128.19,128.15,6.84]
[1742175257873,16.65165821,128.19,128.15,31.29495821]
[1742175258281,16.65165821,128.2,128.15,31.29495821]
[1742175259887,24.45195821,128.2,128.15,23.49165821]
[1742175260492,16.65165821,128.2,128.15,23.49165821]
[1742175262070,16.65165821,128.2,128.15,31.29495821]
[1742175265074,24.45205821,128.2,128.15,31.29495821]
[1742175265280,16.65165821,128.19,128.15,6.84]
[1742175265458,24.45205821,128.2,128.15,23.49165821]
[1742175265659,24.45205821,128.2,128.15,31.29495821]
[1742175265971,16.65165821,128.19,128.15,14.6433]
[1742175266167,24.45205821,128.2,128.15,31.29495821]
[1742175266875,16.68165821,128.21,128.15,31.57928135]
[1742175267064,0.03,128.21,128.15,31.57928135]
[1742175268462,0.03,128.21,128.15,343.57928135]
[1742175269785,0.03,128.21,128.17,0.28432314]
[1742175270081,0.03,128.21,128.19,16.65165821]
[1742175270261,0.03,128.21,128.19,23.49165821]
[1742175270876,0.03,128.21,128.19,31.29195821]
[1742175271065,0.03,128.21,128.19,14.6403]
[1742175271278,0.03,128.21,128.19,6.84]
[1742175271681,0.03,128.21,128.17,91.45075757]
[1742175272165,0.03,128.21,128.18,10.65075757]
[1742175272993,0.03,128.21,128.2,10.65075757]
[1742175273568,0.03,128.21,128.19,322.65075757]
[1742175273995,0.03,128.21,128.19,312.0]
[1742175274194,0.03,128.21,128.18,18.45215757]
[1742175274768,0.03,128.21,128.17,10.65075757]
[1742175275071,7.8297,128.21,128.17,10.65075757]
[1742175275576,7.8297,128.21,128.17,18.45275757]
[1742175277280,0.03,128.21,128.17,18.45275757]
[1742175279167,10.68075757,128.21,128.16,25.35615757]
[1742175279764,10.68075757,128.21,128.16,14.7054]
[1742175279964,10.68075757,128.21,128.16,25.35615757]
[1742175280792,18.48085757,128.21,128.16,25.35615757]
[1742175281085,18.48085757,128.21,128.16,18.51615757]
[1742175281387,7.8301,128.21,128.17,10.65075757]
[1742175281883,18.48085757,128.21,128.16,7.8654]
[1742175282092,18.48085757,128.21,128.16,18.51615757]
[1742175282684,10.65075757,128.2,128.16,10.71375757]
[1742175282870,10.65075757,128.2,128.16,0.063]
[1742175283484,10.65075757,128.18,128.16,0.063]
[1742175283694,10.65075757,128.19,128.16,0.063]
[1742175284991,18.45225757,128.19,128.16,0.063]
[1742175290014,10.65075757,128.17,128.16,0.063]
[1742175292086,7.8315,128.19,128.16,0.063]
[1742175292087,0.03,128.19,128.16,10.71375757]
[1742175292397,0.03,128.19,128.17,10.65075757]
[1742175292795,0.03,128.19,128.16,329.55375757]
[1742175293197,0.03,128.19,128.16,17.55375757]
[1742175294198,0.03,128.19,128.16,25.35625757]
[1742175295299,0.03,128.19,128.17,10.65075757]
[1742175296196,0.03,128.19,128.17,322.65075757]
[1742175296401,0.03,128.19,128.18,7.8015]
[1742175297899,0.03,128.19,128.16,14.7053]
[1742175298208,10.68075757,128.19,128.16,6.903]
[1742175298580,10.68075757,128.19,128.16,0.063]
[1742175300196,0.03,128.19,128.16,7.8655]
[1742175304205,0.03,128.19,128.17,10.65075757]
[1742175305210,0.03,128.19,128.16,38.02305757]
[1742175305807,0.03,128.19,128.16,18.51625757]
[1742175306892,0.03,128.19,128.16,7.8655]
[1742175309624,0.03,128.19,128.16,0.063]
[1742175310112,10.68075757,128.19,128.16,0.063]
[1742175310608,0.03,128.19,128.16,0.063]
[1742175316217,0.03,128.19,128.16,7.8657]
[1742175321302,0.03,128.19,128.16,18.51645757]
[1742175321829,0.03,128.19,128.16,7.8657]
[1742175323328,0.03,128.19,128.16,319.8657]
[1742175324129,0.03,128.19,128.16,7.8657]
[1742175324532,10.68075757,128.19,128.16,0.063]
[1742175328717,10.65075757,128.17,128.16,0.063]
[1742175329029,71.90343671,128.17,128.16,0.063]
[1742175330621,79.70553671,128.17,128.16,0.063]
[1742175331417,37.10250643,128.17,128.16,0.063]
[1742175337251,7.8016,128.18,128.16,0.063]
[1742175337428,6.095,128.19,128.16,0.063]
[1742175337429,10.65075757,128.17,128.16,0.063]
[1742175339660,10.68075757,128.17,128.16,0.063]
[1742175340454,0.03,128.17,128.16,0.063]
[1742175341531,10.68075757,128.17,128.16,0.063]
[1742175341737,18.48285757,128.17,128.16,0.063]
[1742175343552,61.08588785,128.17,128.16,0.063]
[1742175343853,80.01985985,128.17,128.16,0.063]
[1742175345536,86.32085985,128.17,128.16,0.063]
[1742175350756,86.32085985,128.17,128.12,0.063]
[1742175350757,29.30040643,128.13,128.12,0.063]
[1742175351155,10.65075757,128.13,128.12,0.063]
[1742175352256,18.45525757,128.13,128.12,0.063]
[1742175352459,10.65075757,128.13,128.12,0.063]
[1742175353859,10.65075757,128.14,128.12,0.063]
[1742175354439,10.65075757,128.15,128.12,0.063]
[1742175357058,10.65075757,128.13,128.12,0.063]
[1742175357251,7.8034,128.15,128.12,0.063]
[1742175357452,10.65075757,128.14,128.12,0.063]
[1742175358967,18.45475757,128.14,128.12,0.063]
[1742175359266,10.65075757,128.14,128.12,0.063]
[1742175360046,7.8321,128.17,128.12,0.063]
[1742175360265,10.65075757,128.15,128.12,0.063]
[1742175361665,10.65075757,128.14,128.12,0.063]
[1742175361972,10.65075757,128.13,128.12,0.063]
[1742175362662,10.65075757,128.14,128.12,0.063]
[1742175363571,10.65075757,128.15,128.12,0.063]
[1742175364666,18.45405757,128.15,128.12,0.063]
[1742175364851,7.8328,128.16,128.12,0.063]
[1742175365044,10.65075757,128.15,128.12,0.063]
[1742175365247,10.68075757,128.16,128.12,0.063]
[1742175365464,10.68075757,128.16,128.12,7.6294]
[1742175365850,0.03,128.16,128.12,18.28015757]
[1742175366570,0.03,128.16,128.13,10.65075757]
[1742175366749,0.03,128.16,128.14,7.8039]
[1742175366951,0.03,128.16,128.13,7.8042]
[1742175368571,0.03,128.16,128.13,319.8042]
[1742175370774,10.68075757,128.16,128.12,7.6294]
[1742175371078,10.65075757,128.15,128.12,7.6294]
[1742175371273,10.65075757,128.15,128.12,15.4345]
[1742175371581,10.68075757,128.16,128.12,15.4345]
[1742175373664,10.65075757,128.15,128.12,0.063]
[1742175374181,10.65075757,128.15,128.12,7.868]
[1742175374475,7.8327,128.16,128.12,0.063]
[1742175374682,18.48345757,128.16,128.12,0.063]
[1742175376184,10.68075757,128.16,128.12,0.063]
[1742175376389,0.03,128.16,128.13,10.65075757]
[1742175376563,0.03,128.16,128.12,10.99808071]
[1742175377388,0.03,128.16,128.13,10.65075757]
[1742175377560,0.03,128.16,128.14,10.65075757]
[1742175377760,0.03,128.16,128.14,18.41065757]
[1742175377966,0.03,128.16,128.14,25.25065757]
[1742175378687,0.03,128.16,128.14,33.05415757]
[1742175378887,0.03,128.16,128.14,22.4034]
[1742175379188,0.03,128.16,128.14,33.05415757]
[1742175380586,0.03,128.16,128.14,345.05415757]
[1742175383289,0.03,128.16,128.15,10.65075757]
[1742175383590,0.03,128.16,128.14,345.05415757]
[1742175384492,0.03,128.16,128.14,33.05415757]
[1742175384993,0.03,128.16,128.15,18.73838071]
[1742175385288,0.03,128.16,128.14,33.05425757]
[1742175385490,0.03,128.16,128.14,14.5999]
[1742175387369,0.03,128.16,128.14,326.5999]
[1742175388194,0.03,128.16,128.14,337.25065757]
[1742175388911,0.03,128.16,128.14,318.84]
[1742175389093,10.65075757,128.15,128.13,0.063]
[1742175389395,10.65075757,128.14,128.13,0.063]
[1742175390909,37.10430643,128.14,128.13,0.063]
[1742175401311,38.65460643,128.14,128.13,0.063]
[1742175401694,20.0,128.1,128.06,3.93276511]
[1742175401900,20.0,128.1,128.06,0.063]
[1742175401901,10.65075757,128.07,128.06,0.063]
[1742175402404,29.30040643,128.07,128.06,0.063]
[1742175402906,10.65075757,128.08,128.06,0.063]
[1742175405929,10.65075757,128.07,128.06,0.063]
[1742175410023,18.45895757,128.07,128.06,0.063]
[1742175410939,10.65075757,128.07,128.06,0.063]
[1742175411138,18.45895757,128.07,128.06,0.063]
[1742175416749,37.10860643,128.07,128.06,0.063]
[1742175417344,18.64964886,128.07,128.06,0.063]
[1742175417553,29.30040643,128.07,128.06,0.063]
[1742175417924,18.64964886,128.07,128.06,0.063]
[1742175420230,29.30040643,128.07,128.06,0.063]
[1742175420546,37.10860643,128.07,128.06,0.063]
[1742175423456,18.64964886,128.07,128.06,0.063]
[1742175423631,26.45784886,128.07,128.06,0.063]
[1742175423831,37.10860643,128.07,128.06,0.063]
[1742175439455,37.39292957,128.07,128.06,0.063]
[1742175440158,37.39292957,128.07,128.06,0.0001]
[1742175440336,20.0,128.04,128.03,0.063]
[1742175440658,91.90343671,128.04,128.03,0.063]
[1742175440834,99.71343671,128.04,128.03,0.063]
[1742175443267,79.71343671,128.04,128.03,0.063]
[1742175444552,79.99775985,128.04,128.03,0.063]
[1742175445456,79.71343671,128.04,128.03,0.063]
[1742175447759,37.11040643,128.04,128.03,0.063]
[1742175448161,79.71343671,128.04,128.03,0.063]
[1742175450840,79.99775985,128.04,128.03,0.063]
[1742175451050,86.83775985,128.04,128.03,0.063]
[1742175451239,79.99775985,128.04,128.03,0.063]
[1742175451438,86.83775985,128.04,128.03,0.063]
[1742175453360,20.0,128.02,128.01,0.063]
[1742175453559,49.58472957,128.02,128.01,0.063]
[1742175453763,49.30040643,128.02,128.01,0.063]
[1742175455463,26.46084886,128.02,128.01,0.063]
[1742175456148,37.11160643,128.02,128.01,0.063]
[1742175471988,18.64964886,128.02,128.01,0.063]
[1742175473576,18.64964886,128.02,128.01,7.8772]
[1742175473790,0.03,128.04,128.01,18.52795757]
[1742175474092,0.03,128.03,128.02,18.46195757]
[1742175474667,0.03,128.12,128.07,20.0]
[1742175474969,0.03,128.12,128.08,17.49075757]
[1742175475179,10.68075757,128.12,128.08,6.84]
[1742175475569,29.33040643,128.12,128.08,6.84]
[1742175475963,10.65075757,128.1,128.05,17.49075757]
[1742175476163,10.65075757,128.09,128.05,17.49075757]
[1742175476387,18.64964886,128.08,128.05,6.84]
[1742175478064,18.64964886,128.08,128.05,17.49075757]
[1742175478264,18.64964886,128.08,128.06,10.65075757]
[1742175478879,18.64964886,128.08,128.05,17.49075757]
[1742175479185,18.64964886,128.08,128.05,6.84]
[1742175479573,18.64964886,128.09,128.05,17.49075757]
[1742175480072,26.45684886,128.09,128.05,17.49075757]
[1742175480666,37.10760643,128.09,128.05,6.84]
[1742175482284,26.45684886,128.09,128.05,17.49075757]
[1742175484487,37.10760643,128.09,128.05,6.84]
[1742175485968,37.13760643,128.09,128.05,6.84]
[1742175486889,26.48684886,128.09,128.05,6.84]
[1742175487976,37.13760643,128.09,128.05,6.84]
[1742175488587,0.03,128.12,128.08,28.15126157]
[1742175488779,0.03,128.12,128.1,10.65075757]
[1742175489090,0.03,128.12,128.1,17.53075757]
[1742175489470,0.03,128.12,128.1,6.88]
[1742175489677,0.03,128.12,128.1,17.53075757]
[1742175489873,0.03,128.12,128.11,10.93508071]
[1742175490282,0.03,128.12,128.11,17.36758071]
[1742175490480,0.03,128.12,128.11,25.17328071]
[1742175491392,0.03,128.12,128.11,337.17328071]
[1742175496793,0.03,128.12,128.11,341.08688547]
[1742175499586,0.03,128.12,128.11,6.4325]
[1742175499791,0.03,128.12,128.1,7.8061]
[1742175500094,0.03,128.12,128.09,25.29745757]
[1742175500293,0.03,128.12,128.09,14.6467]
[1742175500595,0.03,128.12,128.09,25.29745757]
[1742175501385,0.03,128.12,128.08,26.08115757]
[1742175502806,0.03,128.12,128.09,10.65075757]
[1742175504494,0.03,128.12,128.09,18.45755757]
[1742175504677,0.03,128.12,128.1,10.65075757]
[1742175505784,0.0001,128.12,128.11,17.77508071]
[1742175505989,0.03,128.16,128.15,0.28432314]
[1742175506187,0.03,128.16,128.15,17.81508071]
[1742175506396,0.03,128.16,128.15,329.81508071]
[1742175506597,0.03,128.16,128.15,337.61838071]
[1742175513805,0.03,128.16,128.15,25.61838071]
[1742175516915,0.03,128.16,128.15,337.61838071]
[1742175521826,0.03,128.16,128.15,322.93508071]
[1742175522126,0.03,128.16,128.15,25.55838071]
[1742175525043,0.03,128.16,128.15,337.55838071]
[1742175527317,0.03,128.16,128.15,106.35838071]
[1742175527517,0.0001,128.16,128.15,150.1313027]
[1742175527925,0.0001,128.16,128.15,169.28095156]
[1742175528106,0.0001,128.16,128.15,168.11105985]
[1742175529838,0.0001,128.16,128.15,374.47105985]
[1742175530435,0.0001,128.16,128.15,667.32141099]
[1742175530618,0.0001,128.16,128.15,624.71838071]
[1742175534223,0.0001,128.16,128.15,624.78138071]
[1742175535637,0.0001,128.16,128.15,617.96138071]
[1742175535819,0.0001,128.16,128.15,624.78138071]
[1742175538824,0.0001,128.16,128.15,667.38441099]
[1742175541139,0.03,128.19,128.18,20.28432314]
[1742175541319,0.03,128.19,128.18,111.73508071]
[1742175543346,0.03,128.19,128.18,119.53658071]
[1742175544442,0.03,128.19,128.18,431.53658071]
[1742175546454,0.03,128.19,128.18,119.53658071]
[1742175549543,0.03,128.19,128.18,431.53658071]
[1742175549850,0.03,128.19,128.18,435.45030433]
[1742175550952,0.03,128.21,128.18,435.45030433]
[1742175551146,0.03,128.21,128.2,10.79291914]
[1742175551340,0.03,128.21,128.19,17.47075757]
[1742175551844,0.03,128.21,128.19,6.82]
[1742175553055,0.03,128.21,128.19,14.6206]
[1742175553251,0.03,128.21,128.19,25.27135757]
[1742175554635,0.03,128.21,128.19,18.45135757]
[1742175555331,0.03,128.21,128.2,10.65075757]
[1742175556051,0.03,128.21,128.2,18.45105757]
[1742175560185,0.03,128.21,128.2,330.45105757]
[1742175563272,0.03,128.21,128.2,18.45105757]
[1742175566180,0.03,128.21,128.2,7.8003]
[1742175566388,0.03,128.21,128.18,102.46880433]
[1742175566569,0.03,128.21,128.19,10.65075757]
[1742175567687,0.03,128.21,128.19,18.45115757]
[1742175569096,0.03,128.21,128.19,7.8004]
[1742175569887,0.03,128.21,128.19,18.45115757]
[1742175570387,0.03,128.21,128.19,18.51415757]
[1742175571662,10.65075757,128.2,128.19,0.063]
[1742175573186,18.45105757,128.2,128.19,0.063]
[1742175574584,0.03,128.21,128.19,0.063]
[1742175575088,7.8297,128.21,128.19,0.063]
[1742175575868,18.48045757,128.21,128.19,0.063]
[1742175577868,7.8297,128.21,128.19,0.063]
[1742175578073,0.03,128.21,128.19,0.063]
[1742175581695,10.68075757,128.21,128.19,0.063]
[1742175583373,18.48045757,128.21,128.19,0.063]
[1742175584500,0.03,128.21,128.19,0.063]
[1742175595804,0.03,128.21,128.19,312.063]
[1742175598197,0.03,128.21,128.19,0.063]
[1742175601309,0.03,128.21,128.19,322.71375757]
[1742175602003,0.03,128.21,128.2,10.65075757]
[1742175602410,0.03,128.21,128.2,10.93508071]
[1742175603995,0.03,128.21,128.2,18.73538071]
[1742175605601,0.03,128.21,128.2,330.73538071]
[1742175606315,0.03,128.21,128.2,334.58129412]
[1742175608028,10.65075757,128.23,128.19,0.063]
[1742175608202,10.65075757,128.22,128.19,0.063]
[1742175609020,18.44925757,128.23,128.19,0.063]
[1742175609198,10.65075757,128.22,128.19,0.063]
[1742175610927,18.45035757,128.22,128.19,0.063]
[1742175611297,29.30040643,128.21,128.19,0.063]
[1742175612825,26.44994886,128.2,128.19,0.063]
[1742175613013,37.10070643,128.2,128.19,0.063]
[1742175618833,38.72120643,128.2,128.19,0.063]
[1742175619023,45.18622957,128.2,128.19,0.0001]
[1742175619221,52.00622957,128.2,128.19,0.0001]
[1742175619812,20.0,128.17,128.16,0.063]
[1742175620122,49.30040643,128.17,128.16,0.063]
[1742175620522,57.10250643,128.17,128.16,0.063]
[1742175621520,57.38682957,128.17,128.16,0.063]
[1742175622625,101.61035985,128.17,128.16,0.0001]
[1742175623619,107.73344529,128.17,128.16,0.0001]
[1742175623818,101.61035985,128.17,128.16,0.0001]
[1742175625949,18.933972,128.16,128.15,0.0001]
[1742175626151,79.00775985,128.16,128.15,0.0001]
[1742175628049,86.81045985,128.16,128.15,0.0001]
[1742175634187,44.20742957,128.16,128.15,0.0001]
[1742175634358,37.10310643,128.16,128.15,0.0001]
[1742175635673,26.45234886,128.16,128.15,0.0001]
[1742175635986,37.10310643,128.16,128.15,0.0001]
[1742175637985,79.99045985,128.16,128.15,0.0001]
[1742175638562,37.10310643,128.16,128.15,0.0001]
[1742175639985,29.30040643,128.16,128.15,0.0001]
[1742175640187,30.65075757,128.17,128.15,0.0001]
[1742175640361,18.64964886,128.17,128.15,0.0001]
[1742175640563,10.65075757,128.18,128.15,0.0001]
[1742175641073,18.64964886,128.18,128.15,0.0001]
[1742175641468,29.30040643,128.18,128.15,0.0001]
[1742175642685,0.03,128.21,128.16,18.30455757]
[1742175642869,0.03,128.21,128.18,10.65075757]
[1742175643268,0.03,128.21,128.17,10.65075757]
[1742175643878,0.03,128.21,128.18,312.0]
[1742175644568,0.03,128.21,128.17,10.65075757]
[1742175644778,10.68075757,128.21,128.16,26.10695757]
[1742175644983,10.68075757,128.21,128.16,18.30455757]
[1742175646092,7.8003,128.2,128.16,18.30455757]
[1742175647588,7.8003,128.2,128.16,330.30455757]
[1742175647982,18.48055757,128.21,128.16,338.10715757]
[1742175648872,18.48055757,128.21,128.16,330.30455757]
[1742175649284,18.48055757,128.21,128.16,338.10715757]
[1742175650471,0.03,128.21,128.17,10.65075757]
[1742175650868,0.03,128.21,128.18,10.65075757]
[1742175651279,0.03,128.21,128.17,10.65075757]
[1742175651792,0.03,128.21,128.17,18.45255757]
[1742175652383,0.03,128.21,128.18,6.82]
[1742175653391,0.03,128.21,128.19,10.65075757]
[1742175653890,0.03,128.21,128.18,337.27195757]